bitfinex-derivatives/quotes_BNBF0:USTF0_20230901
["timestamp","ask_amount","ask_price","bid_price","bid_amount"]
[1693587963812,0.17225965,213.84,213.28,0.86148492]
[1693587964212,0.17225965,213.83,213.28,0.86148492]
[1693587964412,0.17225965,213.9,213.28,0.86148492]
[1693587964612,0.17225965,213.89,213.28,0.86148492]
[1693587964808,5.26766747,213.9,213.28,0.86148492]
[1693587965012,0.17225965,213.89,213.28,0.86148492]
[1693587966414,0.17225965,213.89,213.28,0.93787732]
[1693587966611,0.17225965,213.89,213.29,0.86148492]
[1693587967411,5.26766747,213.89,213.29,0.93787732]
[1693587967617,0.17225965,213.88,213.3,0.86148492]
[1693587967915,0.17225965,213.88,213.31,0.86148492]
[1693587968215,0.17225965,213.88,213.32,0.86148492]
[1693587968412,0.17225965,213.88,213.29,0.86148492]
[1693587968616,0.17225965,213.88,213.3,0.86148492]
[1693587968810,5.26766747,213.88,213.3,0.86148492]
[1693587969014,0.17225965,213.87,213.3,0.86148492]
[1693587969415,0.17225965,213.87,213.29,0.86148492]
[1693587969617,0.17225965,213.87,213.3,0.86148492]
[1693587969817,0.17225965,213.87,213.31,0.86148492]
[1693587970014,0.17225965,213.87,213.32,0.86148492]
[1693587970211,5.09540782,213.85,213.29,0.0763924]
[1693587970517,5.26766747,213.84,213.3,0.86128928]
[1693587970719,0.17225965,213.83,213.3,0.86128928]
[1693587970913,0.17225965,213.83,213.08,3.75027234]
[1693587970914,7.3058306,213.83,213.25,0.0763924]
[1693587971113,7.3058306,213.83,213.02,1.01856535]
[1693587971114,0.17225965,213.82,213.26,0.86154248]
[1693587971316,0.17225965,213.82,213.25,0.86154248]
[1693587971516,0.17225965,213.82,213.26,0.86154248]
[1693587971819,5.09540782,213.8,213.27,0.86154248]
[1693587972017,0.17225965,213.79,213.25,0.86154248]
[1693587972316,0.17225965,213.79,213.26,0.86154254]
[1693587972517,5.26766747,213.79,213.27,0.86154254]
[1693587972717,0.17225965,213.78,213.25,0.0763924]
[1693587972914,0.17225965,213.78,213.26,0.86151853]
[1693587973616,0.17225965,213.77,213.26,0.93791093]
[1693587973820,0.17225965,213.76,213.27,0.86151853]
[1693587974118,0.17225965,213.75,213.27,0.86151853]
[1693587974318,0.17225965,213.78,213.27,0.86151853]
[1693587974514,0.17225965,213.77,213.27,0.86151853]
[1693587974718,0.17225965,213.79,213.27,0.86151853]
[1693587974918,0.17225965,213.78,213.27,0.86151853]
[1693587975118,0.17225965,213.77,213.27,0.86151853]
[1693587975318,0.17225965,213.76,213.27,0.86151853]
[1693587975518,0.17225965,213.75,213.27,0.86151853]
[1693587975714,0.17225965,213.79,213.27,0.93791093]
[1693587975914,0.17225965,213.78,213.28,0.86151853]
[1693587976221,0.17225965,213.77,213.28,0.86151853]
[1693587976415,0.17225965,213.76,213.26,0.0763924]
[1693587976619,0.17225965,213.75,213.27,0.86151775]
[1693587976819,0.17225965,213.8,213.27,0.86151775]
[1693587977015,0.17225965,213.79,213.27,0.86151775]
[1693587977320,0.17225965,213.78,213.27,0.93791015]
[1693587977621,0.17225965,213.77,213.28,0.86151775]
[1693587977921,0.17225965,213.76,213.28,0.86151775]
[1693587978122,0.17225965,213.8,213.28,0.86151775]
[1693587978420,10.1908156,213.86,213.31,0.0763924]
[1693587978421,0.17225965,213.79,213.31,0.0763924]
[1693587978716,0.17225965,213.78,213.32,0.93791015]
[1693587978921,0.17225965,213.77,213.33,0.86151775]
[1693587979221,0.17225965,213.76,213.33,0.86151775]
[1693587979421,0.17225965,213.85,213.33,0.86151775]
[1693587979620,0.17225965,213.84,213.33,0.86151775]
[1693587979817,0.17225965,213.83,213.33,0.86151775]
[1693587980018,0.17225965,213.82,213.33,0.86151775]
[1693587980215,0.17225965,213.85,213.33,0.86151775]
[1693587980420,0.17225965,213.84,213.33,0.86151775]
[1693587980621,0.17225965,213.83,213.33,0.86151775]
[1693587980818,0.17225965,213.82,213.33,0.86151775]
[1693587981020,0.17225965,213.81,213.33,0.86151775]
[1693587981225,0.17225965,213.85,213.33,0.86151775]
[1693587981424,0.17225965,213.84,213.33,0.86151775]
[1693587981621,5.26766747,213.85,213.33,0.86151775]
[1693587981823,0.17225965,213.84,213.33,0.86151775]
[1693587982022,0.17225965,213.84,213.33,0.93791015]
[1693587982319,0.17225965,213.83,213.34,0.86151775]
[1693587982519,0.17225965,213.82,213.34,0.86151775]
[1693587982724,0.17225965,213.81,213.34,0.86151775]
[1693587983023,0.17225965,213.8,213.34,0.86151775]
[1693587983224,0.17225965,213.85,213.34,0.86151775]
[1693587983417,0.17225965,213.84,213.34,0.86151775]
[1693587983616,0.17225965,213.83,213.34,0.86151775]
[1693587983822,0.17225965,213.82,213.34,0.86151775]
[1693587984019,0.17225965,213.81,213.34,0.86151775]
[1693587984324,5.09540782,213.86,213.34,0.86151775]
[1693587984325,0.17225965,213.8,213.34,0.86151775]
[1693587984526,5.26766747,213.86,213.34,0.86151775]
[1693587984728,0.17225965,213.85,213.34,0.86151775]
[1693587984922,0.17225965,213.86,213.34,0.86151775]
[1693587985124,0.17225965,213.85,213.34,0.86151775]
[1693587985323,0.17225965,213.84,213.34,0.86151775]
[1693587985524,0.17225965,213.83,213.34,0.86151775]
[1693587985725,0.17225965,213.82,213.34,0.86151775]
[1693587985925,0.17225965,213.86,213.34,0.86151775]
[1693587986123,0.17225965,213.85,213.34,0.86151775]
[1693587988729,0.17225965,213.85,213.32,0.0763924]
[1693587989026,5.26766747,213.85,213.33,0.86125645]
[1693587989224,0.17225965,213.84,213.33,0.86125645]
[1693587989423,0.17225965,213.84,213.31,0.0763924]
[1693587989624,0.17225965,213.84,213.32,0.86128687]
[1693587989825,0.17225965,213.84,213.31,0.86128687]
[1693587990028,0.17225965,213.84,213.32,0.86129524]
[1693587990230,5.09540782,213.83,213.3,0.0763924]
[1693587990529,0.17225965,213.82,213.31,0.86129654]
[1693587990729,0.17225965,213.82,213.32,0.86129654]
[1693587990930,0.17225965,213.82,213.29,0.0763924]
[1693587991231,0.17225965,213.82,213.3,0.93769935]
[1693587991431,0.17225965,213.82,213.31,0.86130695]
[1693587991733,0.17225965,213.82,213.32,0.86130695]
[1693587992033,0.17225965,213.82,213.33,0.86126723]
[1693587992329,0.17225965,213.82,213.3,0.0763924]
[1693587992526,0.17225965,213.82,213.31,0.86126489]
[1693587992730,0.17225965,213.82,213.31,0.93765729]
[1693587992928,0.17225965,213.82,213.32,0.86126489]
[1693587993630,5.26766747,213.82,213.32,0.86126489]
[1693587993830,0.17225965,213.81,213.32,0.86126489]
[1693587994327,0.17225965,213.8,213.32,0.86126489]
[1693587994533,0.17225965,213.79,213.32,0.86126489]
[1693587994734,0.17225965,213.81,213.32,0.86126489]
[1693587994933,0.17225965,213.8,213.32,0.86126489]
[1693587995130,0.17225965,213.81,213.32,0.86126489]
[1693587995332,0.17225965,213.8,213.32,0.86126489]
[1693587995533,0.17225965,213.79,213.32,0.86126489]
[1693587995733,0.17225965,213.78,213.33,0.86126489]
[1693587995930,0.17225965,213.81,213.31,0.86126489]
[1693587996129,0.17225965,213.8,213.32,0.86124809]
[1693587996332,5.09540782,213.82,213.33,0.86124809]
[1693587996333,0.17225965,213.79,213.33,0.86124809]
[1693587996532,0.17225965,213.81,213.31,0.86124809]
[1693587996730,0.17225965,213.8,213.32,0.86122956]
[1693587997037,0.17225965,213.79,213.33,0.86122956]
[1693587997335,0.17225965,213.78,213.3,0.0763924]
[1693587997636,0.17225965,213.77,213.31,0.86122603]
[1693587997836,0.17225965,213.81,213.31,0.86122603]
[1693587998131,0.17225965,213.8,213.31,0.86122603]
[1693587998336,0.17225965,213.79,213.31,0.86122603]
[1693587998634,0.17225965,213.78,213.31,0.86122603]
[1693587998836,0.17225965,213.77,213.32,0.86122603]
[1693587999037,0.17225965,213.8,213.29,0.0763924]
[1693587999237,0.17225965,213.79,213.3,0.86125361]
[1693587999538,0.17225965,213.78,213.3,0.86125361]
[1693587999734,0.17225965,213.77,213.3,0.86125361]
[1693587999931,0.17225965,213.79,213.3,0.86125361]
[1693588000138,0.17225965,213.78,213.3,0.86125361]
[1693588000333,0.17225965,213.79,213.3,0.86125361]
[1693588000530,5.09540782,213.8,213.3,0.86125361]
[1693588000531,0.17225965,213.78,213.3,0.86125361]
[1693588000835,0.17225965,213.77,213.31,0.86125361]
[1693588001036,0.17225965,213.79,213.29,0.86125361]
[1693588001237,0.17225965,213.78,213.3,0.86125361]
[1693588001437,0.17225965,213.79,213.29,0.86125361]
[1693588001637,0.17225965,213.79,213.28,0.0763924]
[1693588001638,0.17225965,213.78,213.3,0.86125361]
[1693588001937,0.17225965,213.77,213.31,0.86125361]
[1693588002137,0.17225965,213.79,213.29,0.86125361]
[1693588002338,0.17225965,213.78,213.3,0.86125361]
[1693588002538,0.17225965,213.79,213.29,0.86125361]
[1693588002740,0.17225965,213.78,213.3,0.86125361]
[1693588002938,5.26766747,213.79,213.28,0.86125361]
[1693588003138,0.17225965,213.78,213.29,0.86125361]
[1693588003338,0.17225965,213.78,213.28,0.86125361]
[1693588003639,0.17225965,213.78,213.27,0.0763924]
[1693588003640,0.17225965,213.78,213.29,0.86125361]
[1693588003834,0.17225965,213.78,213.3,0.86125361]
[1693588004033,0.17225965,213.78,213.31,0.86125361]
[1693588004241,0.17225965,213.78,213.05,1.01856535]
[1693588004242,0.17225965,213.78,55.66,0.17820432]
[1693588004442,0.17225965,213.77,213.27,0.07661228]
[1693588004639,0.17225965,213.77,213.28,0.93789586]
[1693588004837,0.17225965,213.76,213.29,0.86128358]
[1693588005036,0.17225965,213.78,213.29,0.86128358]
[1693588005235,0.17225965,213.77,213.29,0.86128358]
[1693588005539,0.17225965,213.76,213.29,0.86128358]
[1693588005743,0.17225965,213.78,213.29,0.86128358]
[1693588005942,0.17225965,213.77,213.29,0.86128358]
[1693588006137,0.17225965,213.79,213.29,0.86128358]
[1693588006337,0.17225965,213.78,213.29,0.86128358]
[1693588006543,0.17225965,213.78,213.29,0.93789586]
[1693588006739,0.17225965,213.77,213.3,0.86128358]
[1693588006943,0.17225965,213.78,213.3,0.86128358]
[1693588007243,0.17225965,213.77,213.31,0.86128358]
[1693588007439,0.17225965,213.78,213.3,0.86128358]
[1693588007646,0.17225965,213.77,213.31,0.86128358]
[1693588007844,0.17225965,213.78,213.29,0.86128358]
[1693588008042,5.27331096,213.78,213.29,0.86128358]
[1693588008238,0.17225965,213.77,213.29,0.86128358]
[1693588008442,0.17225965,213.76,213.29,0.93789586]
[1693588008642,0.17225965,213.78,213.3,0.86128358]
[1693588008944,0.17225965,213.77,213.3,0.86128358]
[1693588009142,0.17225965,213.78,213.35,0.07661228]
[1693588009348,0.17225965,213.77,213.36,0.86128358]
[1693588009646,0.17225965,213.76,213.36,0.93789586]
[1693588009945,0.17225965,213.75,213.37,0.86128358]
[1693588010245,0.17225965,213.74,213.37,0.86128358]
[1693588010441,0.17225965,213.85,213.37,0.86128358]
[1693588010744,0.17225965,213.84,213.37,0.86128358]
[1693588010944,0.17225965,213.85,213.37,0.86128358]
[1693588011145,0.17225965,213.84,213.37,0.86128358]
[1693588011345,0.17225965,213.85,213.37,0.86128358]
[1693588011645,0.17225965,213.84,213.37,0.86128358]
[1693588012239,0.17225965,213.84,213.32,0.07661228]
[1693588012439,0.17225965,213.84,213.33,0.93783674]
[1693588012643,0.17225965,213.84,213.34,0.86122446]
[1693588012843,5.10105131,213.8,213.34,0.86122446]
[1693588013044,0.17225965,213.79,213.34,0.86122446]
[1693588014245,5.27331096,213.79,213.34,0.86122446]
[1693588014448,0.17225965,213.78,213.34,0.86122446]
[1693588017250,0.17225965,213.78,213.33,0.07661228]
[1693588018051,0.17225965,213.78,213.34,0.86122102]
[1693588018647,0.17225965,213.79,213.34,0.86122102]
[1693588019749,5.27331096,213.79,213.34,0.86122102]
[1693588019957,0.17225965,213.78,213.34,0.86122102]
[1693588020551,0.17225965,213.79,213.34,0.86122102]
[1693588021148,0.17225965,213.79,213.32,0.07661228]
[1693588021347,0.17225965,213.79,213.33,0.86122784]
[1693588021853,5.27331096,213.79,213.33,0.86122784]
[1693588022153,0.17225965,213.78,213.33,0.86122784]
[1693588026960,0.17225965,213.78,213.33,0.93784012]
[1693588027154,0.17225965,213.78,213.34,0.86122784]
[1693588031764,0.17225965,213.78,213.33,0.86122784]
[1693588031962,0.17225965,213.78,213.34,0.86120945]
[1693588032263,0.17225965,213.78,213.32,0.07661228]
[1693588032458,0.17225965,213.78,213.33,0.86120971]
[1693588033261,5.27331096,213.78,213.33,0.86120971]
[1693588033563,0.17225965,213.77,213.33,0.86120971]
[1693588037663,5.27331096,213.77,213.33,0.86120971]
[1693588037961,0.17225965,213.76,213.32,0.07661228]
[1693588038167,0.17225965,213.76,213.33,0.86124764]
[1693588038467,0.17225965,213.76,213.32,0.07661228]
[1693588038667,0.17225965,213.76,213.33,0.86124062]
[1693588039960,0.17225965,213.76,213.33,0.9378529]
[1693588040265,0.17225965,213.76,213.34,0.86124062]
[1693588040469,5.11026857,213.77,213.33,0.07673759]
[1693588040661,0.17225965,213.76,213.34,0.86120405]
[1693588041266,0.17225965,213.75,213.34,0.86120405]
[1693588041466,0.17225965,213.74,213.34,0.86120405]
[1693588041668,0.17225965,213.73,213.34,0.86120405]
[1693588041866,0.17225965,213.77,213.34,0.86120405]
[1693588042070,0.17225965,213.76,213.34,0.86120405]
[1693588042269,0.17225965,213.75,213.34,0.86120405]
[1693588042468,0.17225965,213.74,213.34,0.86120405]
[1693588042769,0.17225965,213.73,213.38,0.07673759]
[1693588042969,0.17225965,213.81,213.39,0.93794164]
[1693588043165,0.17225965,213.8,213.39,0.07673759]
[1693588043370,0.17225965,213.79,213.38,0.07673759]
[1693588043666,0.17225965,213.78,213.39,0.86094127]
[1693588043866,0.17225965,213.83,213.39,0.86094127]
[1693588044064,0.17225965,213.82,213.39,0.86094127]
[1693588044261,0.17225965,213.81,213.39,0.86094127]
[1693588044469,0.17225965,213.8,213.39,0.86094127]
[1693588044672,0.17225965,213.83,213.39,0.86094127]
[1693588044869,0.17225965,213.82,213.39,0.86094127]
[1693588045066,0.17225965,213.81,213.39,0.86094127]
[1693588045265,0.17225965,213.8,213.39,0.86094127]
[1693588045467,5.28252822,213.83,213.39,0.86094127]
[1693588045663,0.17225965,213.82,213.37,0.07673759]
[1693588045968,0.17225965,213.82,213.38,0.86096277]
[1693588047771,0.17225965,213.81,213.38,0.86096277]
[1693588047973,0.17225965,213.83,213.38,0.86096277]
[1693588048165,0.17225965,213.82,213.38,0.86096277]
[1693588048370,0.17225965,213.81,213.38,0.86096277]
[1693588048568,0.17225965,213.8,213.39,0.86096277]
[1693588048871,0.17225965,213.79,213.36,0.07673759]
[1693588049072,0.17225965,213.83,213.37,0.86097784]
[1693588049270,0.17225965,213.82,213.37,0.86097784]
[1693588049471,0.17225965,213.81,213.37,0.86097784]
[1693588049674,0.17225965,213.8,213.37,0.86097784]
[1693588049974,0.17225965,213.79,213.37,0.86097784]
[1693588050170,0.17225965,213.84,213.37,0.86097784]
[1693588050371,0.17225965,213.83,213.37,0.86097784]
[1693588050571,0.17225965,213.84,213.37,0.86097784]
[1693588050773,0.17225965,213.83,213.37,0.86097784]
[1693588051074,0.17225965,213.82,213.37,0.86097784]
[1693588051368,0.17225965,213.81,213.37,0.86097784]
[1693588051573,0.17225965,213.85,213.37,0.86097784]
[1693588051773,0.17225965,213.84,213.37,0.86097784]
[1693588051973,0.17225965,213.83,213.37,0.86097784]
[1693588052175,0.17225965,213.82,213.37,0.86097784]
[1693588052375,0.17225965,213.85,213.37,0.86097784]
[1693588052573,0.17225965,213.84,213.37,0.86097784]
[1693588052774,0.17225965,213.83,213.37,0.86097784]
[1693588053076,0.17225965,213.82,213.37,0.86097784]
[1693588053277,0.17225965,213.81,213.38,0.86097784]
[1693588053476,0.17225965,213.85,213.36,0.86097784]
[1693588053677,0.17225965,213.84,213.37,0.86097784]
[1693588053878,0.17225965,213.84,213.35,0.07673759]
[1693588053879,0.17225965,213.83,213.38,0.86097784]
[1693588054077,0.17225965,213.82,213.39,0.86097784]
[1693588054279,0.17225965,213.81,213.35,0.07673759]
[1693588054480,0.17225965,213.85,213.36,0.8609598]
[1693588054680,0.17225965,213.84,213.36,0.8609598]
[1693588054881,0.17225965,213.85,213.36,0.8609598]
[1693588055080,0.17225965,213.84,213.36,0.8609598]
[1693588055274,0.17225965,213.85,213.36,0.8609598]
[1693588055476,0.17225965,213.84,213.36,0.8609598]
[1693588055679,0.17225965,213.83,213.36,0.8609598]
[1693588055978,0.17225965,213.82,213.36,0.8609598]
[1693588056178,0.17225965,213.86,213.36,0.8609598]
[1693588056379,0.17225965,213.85,213.36,0.8609598]
[1693588056679,0.17225965,213.84,213.36,0.8609598]
[1693588056880,0.17225965,213.83,213.36,0.8609598]
[1693588057075,0.17225965,213.82,213.36,0.8609598]
[1693588057277,0.17225965,213.81,213.36,0.8609598]
[1693588057475,0.17225965,213.86,213.36,0.8609598]
[1693588057678,0.17225965,213.85,213.36,0.8609598]
[1693588057876,0.17225965,213.86,213.36,0.8609598]
[1693588058178,0.17225965,213.85,213.36,0.8609598]
[1693588058375,0.17225965,213.84,213.36,0.8609598]
[1693588058575,0.17225965,213.83,213.36,0.8609598]
[1693588058776,0.17225965,213.82,213.36,0.8609598]
[1693588058977,0.17225965,213.86,213.36,0.8609598]
[1693588059282,0.17225965,213.85,213.36,0.8609598]
[1693588059475,0.17225965,213.84,213.36,0.8609598]
[1693588059680,0.17225965,213.83,213.36,0.8609598]
[1693588059879,0.17225965,213.82,213.36,0.8609598]
[1693588060079,0.17225965,213.86,213.36,0.8609598]
[1693588060277,0.17225965,213.85,213.36,0.8609598]
[1693588060479,0.17225965,213.84,213.36,0.8609598]
[1693588060682,0.17225965,213.83,213.36,0.8609598]
[1693588060880,0.17225965,213.82,213.36,0.8609598]
[1693588061182,0.17225965,213.81,213.36,0.8609598]
[1693588061382,0.17225965,213.86,213.36,0.8609598]
[1693588061581,0.17225965,213.85,213.36,0.8609598]
[1693588061779,0.17225965,213.86,213.36,0.8609598]
[1693588061977,0.17225965,213.85,213.36,0.8609598]
[1693588062182,0.17225965,213.86,213.36,0.8609598]
[1693588062379,0.17225965,213.85,213.3,0.07673759]
[1693588062582,5.11026857,213.87,213.31,0.86121425]
[1693588062583,0.17225965,213.86,213.31,0.86121425]
[1693588062785,0.17225965,213.85,213.31,0.86121425]
[1693588062978,0.17225965,213.84,213.31,0.86121425]
[1693588063182,5.11026857,213.82,213.31,0.86121425]
[1693588063383,0.17225965,213.81,213.31,0.86121425]
[1693588065789,5.28252822,213.81,213.31,0.86121425]
[1693588066090,0.17225965,213.8,213.31,0.86121425]
[1693588066591,0.17225965,213.79,213.31,0.86121425]
[1693588066892,0.17225965,213.78,213.31,0.86121425]
[1693588067088,0.17225965,213.81,213.31,0.86121425]
[1693588067289,0.17225965,213.8,213.31,0.86121425]
[1693588067588,5.11026857,213.82,213.31,0.86121425]
[1693588067589,0.17225965,213.79,213.31,0.86121425]
[1693588067786,0.17225965,213.78,213.32,0.86121425]
[1693588067985,0.17225965,213.77,213.33,0.86121425]
[1693588068291,0.17225965,213.76,213.34,0.86121425]
[1693588068493,0.17225965,213.8,213.3,0.86121425]
[1693588068693,0.17225965,213.79,213.31,0.86122011]
[1693588068894,0.17225965,213.78,213.32,0.86122011]
[1693588069095,0.17225965,213.77,213.33,0.86122011]
[1693588069293,0.17225965,213.76,213.29,0.07673759]
[1693588069495,0.17225965,213.75,213.3,0.86123588]
[1693588069694,0.17225965,213.8,213.3,0.86123588]
[1693588069894,0.17225965,213.79,213.3,0.86123588]
[1693588070089,0.17225965,213.8,213.3,0.86123588]
[1693588070293,0.17225965,213.79,213.3,0.86123588]
[1693588070489,0.17225965,213.78,213.3,0.86123588]
[1693588070693,0.17225965,213.77,213.3,0.86123588]
[1693588070993,0.17225965,213.76,213.3,0.86123588]
[1693588071190,0.17225965,213.8,213.3,0.86123588]
[1693588071392,0.17225965,213.79,213.3,0.86123588]
[1693588071590,0.17225965,213.78,213.3,0.86123588]
[1693588071889,0.17225965,213.77,213.31,0.86123588]
[1693588072090,0.17225965,213.8,213.29,0.86123588]
[1693588072296,0.17225965,213.79,213.3,0.86123588]
[1693588072496,5.11026857,213.81,213.28,0.86123588]
[1693588072497,0.17225965,213.78,213.28,0.86123588]
[1693588072695,0.17225965,213.8,213.21,0.07673759]
[1693588072898,0.17225965,213.79,213.22,0.86155768]
[1693588073097,5.11026857,213.73,213.21,0.93829527]
[1693588073298,0.17225965,213.72,213.22,0.86155768]
[1693588073493,0.17225965,213.71,213.22,0.86155768]
[1693588073693,0.17225965,213.7,213.22,0.86155768]
[1693588073899,5.11026857,213.74,213.22,0.86155768]
[1693588073900,0.17225965,213.73,213.22,0.86155768]
[1693588074096,0.17225965,213.72,213.22,0.86155768]
[1693588074296,0.17225965,213.71,213.22,0.86155768]
[1693588074498,0.17225965,213.73,213.22,0.86155768]
[1693588074698,0.17225965,213.7,213.2,0.86155768]
[1693588074900,0.17225965,213.69,213.2,0.86155768]
[1693588075094,0.17225965,213.68,213.19,0.86155768]
[1693588075293,0.17225965,213.73,213.2,0.86155768]
[1693588075502,0.17225965,213.72,213.18,0.86155768]
[1693588075701,0.17225965,213.76,213.19,0.86155768]
[1693588076000,0.17225965,213.75,213.2,0.86155768]
[1693588076193,0.17225965,213.74,213.21,0.86155768]
[1693588076397,0.17225965,213.73,213.22,0.86155768]
[1693588076597,0.17225965,213.76,213.18,0.86155768]
[1693588076793,0.17225965,213.75,213.19,0.86155768]
[1693588076995,0.17225965,213.78,213.18,0.86155768]
[1693588077297,0.17225965,213.77,213.19,0.86155768]
[1693588077496,0.17225965,213.78,213.18,0.86155768]
[1693588077696,0.17225965,213.77,213.19,0.86155768]
[1693588077896,0.17225965,213.76,213.18,0.86155768]
[1693588078101,0.17225965,213.76,213.17,0.07673759]
[1693588078102,0.17225965,213.75,213.19,0.86155768]
[1693588078300,0.17225965,213.74,213.2,0.86155768]
[1693588078498,0.17225965,213.73,213.21,0.86155768]
[1693588078697,0.17225965,213.79,213.17,0.86155768]
[1693588078896,0.17225965,213.78,213.18,0.86155768]
[1693588079099,0.17225965,213.8,213.17,0.93829527]
[1693588079402,0.17225965,213.79,213.18,0.86155768]
[1693588079702,0.17225965,213.78,213.18,0.86155768]
[1693588079895,0.17225965,213.82,213.18,0.86155768]
[1693588080097,0.17225965,213.81,213.18,0.86155768]
[1693588080299,0.17225965,213.8,213.18,0.86155768]
[1693588080496,0.17225965,213.79,213.18,0.86155768]
[1693588080697,0.17225965,213.78,213.18,0.86155768]
[1693588080900,0.17225965,213.77,213.18,0.86155768]
[1693588081100,0.17225965,213.82,213.18,0.86155768]
[1693588081301,0.17225965,213.81,213.18,0.86155768]
[1693588081500,0.17225965,213.8,213.18,0.86155768]
[1693588081698,0.17225965,213.79,213.18,0.86155768]
[1693588081898,0.17225965,213.82,213.18,0.86155768]
[1693588082103,0.17225965,213.81,213.18,0.86155768]
[1693588082305,0.17225965,213.8,213.18,0.86155768]
[1693588082505,0.17225965,213.82,213.17,0.86155768]
[1693588082704,0.17225965,213.81,213.18,0.86155768]
[1693588082908,0.17225965,213.8,213.19,0.86155768]
[1693588083107,0.17225965,213.79,213.2,0.86155768]
[1693588083307,0.17225965,213.82,213.17,0.86155768]
[1693588083507,0.17225965,213.81,213.18,0.86155768]
[1693588083806,0.17225965,213.8,213.19,0.86155768]
[1693588084008,0.17225965,213.82,213.17,0.86155768]
[1693588084307,0.17225965,213.81,213.18,0.86155768]
[1693588084503,0.17225965,213.83,213.17,0.86155768]
[1693588084808,0.17225965,213.82,213.18,0.86155768]
[1693588085008,0.17225965,213.82,213.16,0.07673759]
[1693588085009,0.17225965,213.81,213.19,0.86155768]
[1693588085201,0.17225965,213.83,213.17,0.86155768]
[1693588085405,0.17225965,213.82,213.18,0.86155768]
[1693588085603,0.17225965,213.81,213.19,0.86155768]
[1693588085807,7.15437601,213.87,213.2,0.86155768]
[1693588085808,0.17225965,213.8,213.2,0.86155768]
[1693588086106,0.17225965,213.79,213.21,0.86155768]
[1693588086310,0.17225965,213.79,213.16,0.07673759]
[1693588086311,0.17225965,213.84,213.17,0.86155768]
[1693588086511,0.17225965,213.83,213.18,0.86155768]
[1693588086710,0.17225965,213.85,213.18,0.86155768]
[1693588086911,0.17225965,213.84,213.18,0.86155768]
[1693588087110,0.17225965,213.85,213.18,0.86155768]
[1693588087311,0.17225965,213.84,213.18,0.86155768]
[1693588087511,0.17225965,213.85,213.18,0.86155768]
[1693588087707,0.17225965,213.84,213.18,0.86155768]
[1693588087910,0.17225965,213.85,213.18,0.86155768]
[1693588088110,0.17225965,213.84,213.18,0.86155768]
[1693588088306,0.17225965,213.85,213.18,0.86155768]
[1693588088510,0.17225965,213.84,213.18,0.93829527]
[1693588088712,0.17225965,213.83,213.19,0.86155768]
[1693588088914,0.17225965,213.85,213.19,0.86155768]
[1693588089208,0.17225965,213.84,213.19,0.86155768]
[1693588089412,0.17225965,213.86,213.19,0.86155768]
[1693588089613,0.17225965,213.85,213.19,0.86155768]
[1693588089912,0.17225965,213.84,213.19,0.86155768]
[1693588090113,0.17225965,213.83,213.19,0.86155768]
[1693588090312,0.17225965,213.82,213.19,0.86155768]
[1693588090510,0.17225965,213.81,213.19,0.86155768]
[1693588090711,0.17225965,213.8,213.19,0.86155768]
[1693588090911,0.17225965,213.79,213.19,0.86155768]
[1693588091108,0.17225965,213.85,213.19,0.86155768]
[1693588091916,0.17225965,213.85,213.19,0.93829527]
[1693588092114,0.17225965,213.85,213.2,0.86155768]
[1693588092910,0.17225965,213.85,213.2,0.93829527]
[1693588093216,5.28252822,213.85,213.21,0.86155768]
[1693588093414,0.17225965,213.84,213.22,0.86155768]
[1693588093615,0.17225965,213.84,213.23,0.86155768]
[1693588093911,0.17225965,213.84,213.24,0.86155768]
[1693588094118,0.17225965,213.84,213.25,0.86155768]
[1693588094315,5.28252822,213.84,213.26,0.86155768]
[1693588094511,0.17225965,213.83,213.21,0.07673759]
[1693588094718,0.17225965,213.83,213.22,0.86155966]
[1693588095516,0.17225965,213.83,213.23,0.86155966]
[1693588095716,0.17225965,213.83,212.98,1.0231679]
[1693588095717,0.17225965,213.83,213.22,0.86155966]
[1693588095911,0.17225965,213.83,213.23,0.86155966]
[1693588096118,0.17225965,213.83,213.21,0.86155966]
[1693588096312,5.11026857,213.81,213.22,0.86155966]
[1693588096513,0.17225965,213.8,213.21,0.86155966]
[1693588096716,0.17225965,213.8,213.22,0.86155966]
[1693588096913,0.17225965,213.8,213.21,0.86155966]
[1693588097215,0.17225965,213.8,213.22,0.86155966]
[1693588097415,5.28252822,213.81,213.21,0.93829725]
[1693588097618,0.17225965,213.8,213.22,0.86155966]
[1693588097811,0.17225965,213.81,213.22,0.86155966]
[1693588098014,0.17225965,213.8,213.22,0.86155966]
[1693588098217,0.17225965,213.81,213.22,0.86155966]
[1693588098413,0.17225965,213.8,213.22,0.93829725]
[1693588098714,0.17225965,213.79,213.23,0.86155966]
[1693588098919,0.17225965,213.81,213.23,0.86155966]
[1693588099118,0.17225965,213.8,213.23,0.86155966]
[1693588099315,0.17225965,213.82,213.23,0.93829725]
[1693588099519,0.17225965,213.81,213.24,0.86155966]
[1693588099719,0.17225965,213.82,213.24,0.86155966]
[1693588099920,0.17225965,213.81,213.24,0.86155966]
[1693588100117,0.17225965,213.82,213.24,0.86155966]
[1693588100317,0.17225965,213.81,213.24,0.86155966]
[1693588100623,0.17225965,213.8,213.24,0.86155966]
[1693588100826,0.17225965,213.79,213.24,0.86155966]
[1693588101027,0.17225965,213.78,213.24,0.86155966]
[1693588101325,0.17225965,213.77,213.24,0.86155966]
[1693588101520,0.17225965,213.76,213.24,0.93829725]
[1693588101826,0.17225965,213.75,213.25,0.86155966]